bitfinex/quotes_ETHUSD_20251212
["timestamp","ask_amount","ask_price","bid_price","bid_amount"]
[1765533484556,0.3358,3252.8,3252.5,4.36733493]
[1765533484756,0.1679,3252.6,3252.5,0.36972563]
[1765533484951,0.1679,3252.6,3252.5,4.02475895]
[1765533485169,0.1679,3252.6,3252.5,0.95020092]
[1765533485981,0.1679,3253.0,3252.5,4.02475895]
[1765533487475,0.1679,3252.6,3252.3,0.95020092]
[1765533487652,0.1679,3252.4,3251.9,0.486]
[1765533487853,0.1679,3252.3,3252.1,3.44464593]
[1765533488053,0.1679,3252.7,3252.1,0.95020092]
[1765533488283,0.1679,3252.7,3252.3,0.36972563]
[1765533488486,0.1679,3252.4,3252.3,0.36972563]
[1765533490578,0.1679,3252.4,3251.9,1.40923884]
[1765533490779,0.3358,3252.3,3252.0,0.36972563]
[1765533490955,0.1679,3252.1,3251.8,3.07516481]
[1765533491284,0.1679,3251.9,3251.7,1.87344402]
[1765533491480,0.1679,3251.8,3251.7,0.95020092]
[1765533491783,0.1679,3251.8,3251.6,0.001]
[1765533491954,0.1679,3251.7,3251.6,0.001]
[1765533492352,3.07486394,3252.2,3251.6,0.001]
[1765533492552,0.92326441,3253.0,3252.3,0.6614]
[1765533492876,0.486,3253.2,3252.4,0.03074652]
[1765533493080,0.486,3253.2,3252.3,0.6423]
[1765533493261,0.486,3253.1,3252.5,0.92310674]
[1765533493656,0.1679,3252.6,3252.5,0.92310674]
[1765533493857,0.3358,3252.6,3252.5,0.92310674]
[1765533494358,0.1679,3252.6,3252.5,0.92310674]
[1765533495184,0.1679,3252.6,3252.4,3.07464125]
[1765533495383,0.1679,3253.0,3252.5,3.07455803]
[1765533495567,0.6539,3253.0,3252.5,3.54735803]
[1765533497689,0.1679,3252.6,3252.4,4.69507563]
[1765533497894,0.1679,3252.6,3252.4,3.99778622]
[1765533498098,0.1679,3252.5,3252.4,3.99778622]
[1765533498463,0.1679,3252.5,3252.4,0.92315787]
[1765533498795,0.3358,3252.5,3252.2,3.07480683]
[1765533498995,1.40920048,3253.1,3252.3,3.07470931]
[1765533499291,0.1679,3253.0,3252.2,3.07483358]
[1765533499482,0.1679,3253.0,3252.3,3.07473937]
[1765533499882,0.1679,3252.4,3252.2,3.07478484]
[1765533500203,0.1679,3252.4,3252.3,3.0747471]
[1765533500370,0.1679,3252.4,3252.2,3.44456727]
[1765533500689,0.1679,3252.2,3252.1,0.92320048]
[1765533500891,0.1679,3252.2,3252.1,4.57861196]
[1765533501080,0.1679,3252.2,3252.1,0.92320048]
[1765533501280,0.1679,3252.2,3252.1,3.07493619]
[1765533502195,0.1679,3252.2,3252.0,3.07495794]
[1765533502564,0.3358,3252.1,3251.9,0.36972563]
[1765533502765,0.1679,3252.0,3251.9,0.36972563]
[1765533502967,0.1679,3252.0,3251.9,3.44485094]
[1765533503191,0.486,3252.6,3251.9,7.46987625]
[1765533503490,0.486,3252.6,3252.0,0.4601]
[1765533504466,0.95115881,3252.6,3252.0,3.53507476]
[1765533504701,0.92325163,3253.0,3252.5,0.4898]
[1765533504993,0.486,3253.2,3252.9,0.4898]
[1765533505707,0.486,3253.2,3252.6,1.38315562]
[1765533505895,0.486,3253.2,3252.8,0.36972563]
[1765533506203,0.1679,3253.5,3252.8,0.36972563]
[1765533506408,0.486,3253.2,3252.8,0.36972563]
[1765533506571,3.07555275,3253.6,3252.8,0.36972563]
[1765533506572,0.002,3253.6,3253.4,0.4898]
[1765533506771,0.002,3253.6,3253.5,0.4898]
[1765533507198,0.002,3253.6,3253.5,1.07293925]
[1765533508280,0.002,3254.2,3253.6,0.405504]
[1765533508470,0.002,3254.2,3253.8,3.56312964]
[1765533508669,0.002,3254.2,3253.8,4.8938221]
[1765533508897,0.002,3254.2,3253.8,5.3539221]
[1765533510297,0.002,3254.2,3253.8,13.16352099]
[1765533510473,0.002,3254.2,3253.8,13.64952099]
[1765533511306,0.002,3254.2,3253.8,15.75230899]
[1765533512192,0.002,3254.2,3254.1,0.58047529]
[1765533512379,0.002,3254.2,3254.1,34.68803086]
[1765533512580,0.002,3254.2,3254.1,38.63531255]
[1765533513396,0.002,3254.2,3254.1,38.34414266]
[1765533513789,0.002,3254.2,3254.1,29.53596866]
[1765533513996,0.002,3254.2,3254.1,10.75793117]
[1765533514181,0.002,3254.2,3254.1,22.47651123]
[1765533514500,0.002,3254.2,3254.1,20.60289963]
[1765533515116,0.002,3254.2,3254.1,9.49759923]
[1765533515400,0.002,3254.2,3254.1,12.10302123]
[1765533516300,0.002,3254.2,3254.1,23.30404223]
[1765533516504,0.002,3254.2,3254.1,24.12254307]
[1765533516801,0.002,3254.2,3254.1,23.73617207]
[1765533516999,0.002,3254.2,3254.1,12.75980607]
[1765533517200,0.002,3254.2,3254.1,7.85043807]
[1765533517400,0.002,3254.2,3254.1,5.16344723]
[1765533519175,0.002,3254.2,3254.1,4.39267194]
[1765533519502,0.002,3254.2,3254.1,4.97314723]
[1765533519703,0.1719,3254.2,3254.1,3.6535216]
[1765533520392,0.002,3254.2,3254.1,4.1433216]
[1765533520995,0.1719,3254.2,3254.1,3.6535216]
[1765533521508,0.3418,3254.2,3254.1,0.58047529]
[1765533521807,0.3418,3254.2,3253.9,0.36972563]
[1765533521808,0.3418,3254.2,3253.9,3.44288644]
[1765533521993,0.1699,3254.0,3253.8,3.07331122]
[1765533522200,0.002,3254.2,3253.9,3.07322725]
[1765533522398,0.1719,3254.2,3253.9,3.07322725]
[1765533522709,0.1719,3254.2,3253.7,3.44311956]
[1765533522710,0.1699,3253.8,3253.7,3.65389939]
[1765533523087,0.002,3254.2,3253.7,7.21712349]
[1765533523385,0.6579,3254.2,3253.8,0.36972563]
[1765533523791,0.1699,3253.9,3253.8,0.36972563]
[1765533524582,0.1699,3253.9,3253.6,3.07346221]
[1765533524912,0.486,3254.0,3253.8,0.4898]
[1765533525114,0.486,3254.0,3253.9,3.44296082]
[1765533525283,0.6559,3254.0,3253.9,3.44296082]
[1765533525480,0.6559,3254.0,3253.9,0.36972563]
[1765533525807,0.1699,3254.0,3253.9,0.36972563]
[1765533526190,0.1699,3254.0,3253.9,3.44296082]
[1765533526701,0.486,3254.1,3253.9,7.46519601]
[1765533526890,0.486,3254.1,3253.9,6.51619601]
[1765533527092,0.1699,3254.0,3253.9,4.02343611]
[1765533527302,0.486,3254.1,3254.0,0.4852]
[1765533527701,0.002,3254.2,3253.9,7.0966713]
[1765533527882,0.1699,3254.1,3253.9,7.0966713]
[1765533528215,0.1699,3254.1,3253.9,4.02343611]
[1765533528590,0.002,3254.2,3253.9,4.02343611]
[1765533528591,0.002,3254.2,3254.0,1.52947529]
[1765533528790,0.002,3254.2,3254.1,0.85492563]
[1765533528990,0.002,3254.2,3254.1,1.31872563]
[1765533529196,0.002,3254.2,3254.1,4.97224723]
[1765533530219,0.002,3254.2,3254.1,4.50844723]
[1765533530545,0.1719,3254.2,3254.1,4.02324723]
[1765533530819,0.1719,3254.2,3254.1,0.36972563]
[1765533531127,0.1719,3254.2,3254.1,3.44277194]
[1765533532013,0.002,3254.2,3254.1,4.50844723]
[1765533532484,0.1719,3254.2,3254.1,4.02324723]
[1765533533109,0.002,3254.2,3254.1,3.6535216]
[1765533533315,0.1719,3254.2,3254.1,3.6535216]
[1765533534009,0.3418,3254.2,3253.7,0.36972563]
[1765533534212,0.1699,3254.1,3253.9,0.58047529]
[1765533534417,0.1699,3254.0,3253.9,0.58047529]
[1765533534808,0.3398,3254.0,3253.9,0.58047529]
[1765533535008,0.1699,3254.0,3253.9,0.58047529]
[1765533535329,0.486,3254.0,3253.9,1.52947529]
[1765533535533,0.002,3254.2,3254.1,0.58047529]
[1765533535688,0.002,3254.2,3254.1,1.43540092]
[1765533536000,0.002,3254.2,3254.1,1.89920092]
[1765533537619,0.002,3254.2,3254.1,4.97224723]
[1765533537816,0.1719,3254.2,3254.1,3.6535216]
[1765533538020,0.1719,3254.2,3254.1,4.02324723]
[1765533538327,0.002,3254.2,3254.1,4.02324723]
[1765533538696,0.1719,3254.2,3254.1,3.6535216]
[1765533538896,0.1719,3254.2,3254.1,4.02324723]
[1765533539096,0.1719,3254.2,3254.1,0.36972563]
[1765533539735,0.1719,3254.2,3254.0,3.07314074]
[1765533539937,0.1719,3254.2,3254.1,0.36972563]
[1765533540093,0.002,3254.2,3254.1,0.36972563]
[1765533540293,0.3418,3254.2,3253.9,3.44294745]
[1765533540499,0.1699,3254.0,3253.9,3.65369711]
[1765533540705,0.1699,3254.0,3253.9,0.58047529]
[1765533541128,0.3398,3254.0,3253.9,3.65371048]
[1765533541729,0.8258,3254.0,3253.5,3.07354841]
[1765533541935,0.486,3254.0,3253.5,3.07354841]
[1765533542435,0.6559,3254.0,3253.5,3.07354841]
[1765533542634,0.6559,3254.0,3253.4,3.44343093]
[1765533542635,0.1699,3253.6,3253.4,3.44340059]
[1765533542943,0.486,3254.0,3253.4,3.44340059]
[1765533542944,0.1699,3253.5,3253.4,4.02387588]
[1765533543410,0.1699,3253.9,3253.4,7.09758338]
[1765533543606,0.486,3254.0,3253.4,8.04658338]
[1765533543919,0.1699,3253.5,3253.4,4.02387588]
[1765533545465,0.002,3254.2,3253.5,0.58047529]
[1765533545749,0.488,3254.2,3254.0,0.36972563]
[1765533545918,0.488,3254.2,3254.0,3.44284345]
[1765533546116,0.1699,3254.1,3253.9,3.07322384]
[1765533546338,0.1699,3254.0,3253.9,3.07322384]
[1765533546542,0.1699,3254.0,3253.9,3.72485985]
[1765533547416,0.002,3254.2,3254.0,3.07309301]
[1765533547807,0.1699,3254.1,3253.9,3.7248484]
[1765533548011,0.1699,3254.0,3253.8,3.07325083]
[1765533548237,0.1699,3253.9,3253.8,3.07325083]
[1765533549312,0.3398,3253.9,3253.7,3.07339856]
[1765533549513,0.1699,3253.8,3253.7,3.07339856]
[1765533549713,0.3398,3253.8,3253.4,0.36972563]
[1765533549924,0.3398,3253.8,3253.4,4.02390842]
[1765533549925,0.1699,3253.5,3253.4,4.02390842]
[1765533550639,0.1699,3253.5,3253.4,3.0737075]
[1765533550839,0.3398,3253.5,3253.3,3.65423959]
[1765533551046,0.1699,3253.5,3253.3,3.65423959]
[1765533551216,0.1699,3253.4,3253.3,3.65423959]
[1765533551745,0.3398,3253.4,3253.2,3.07387212]
[1765533552043,0.1699,3253.4,3253.2,3.07387212]
[1765533552240,0.1699,3253.3,3253.2,3.65434741]
[1765533553933,0.6559,3253.3,3253.2,3.65434741]
[1765533556928,0.1699,3253.3,3253.2,3.65434741]
[1765533557543,0.3398,3253.3,3253.1,3.07397152]
[1765533557722,0.1699,3253.2,3253.1,3.07397152]
[1765533557924,3.07326608,3253.9,3253.3,6.14760396]
[1765533557925,0.1699,3253.9,3253.3,6.14760396]
[1765533558121,0.486,3253.8,3253.3,3.07380198]
[1765533558450,0.1699,3253.4,3253.3,3.07380198]
[1765533558945,0.6559,3253.4,3253.2,3.07388668]
[1765533560452,0.1699,3253.3,3253.2,3.07388668]
[1765533560651,0.3398,3253.3,3253.0,3.07402477]
[1765533560822,0.1699,3253.1,3253.0,3.07407012]
[1765533561022,0.1699,3253.1,3252.8,0.58047529]
[1765533561225,0.1699,3252.9,3252.8,0.58047529]
[1765533563357,0.1699,3252.9,3252.8,3.65474976]
[1765533563538,0.486,3253.1,3252.8,7.57874986]
[1765533564553,0.486,3253.1,3252.8,4.50447539]
[1765533564931,0.1699,3252.9,3252.8,3.65474976]
[1765533565460,0.486,3253.0,3252.8,3.65474976]
[1765533565629,0.1699,3252.9,3252.8,3.65474976]
[1765533566659,0.486,3253.0,3252.8,3.65474976]
[1765533566861,0.1699,3252.9,3252.8,3.65474976]
[1765533568366,0.1699,3252.9,3252.8,3.07427447]
[1765533568728,0.486,3253.0,3252.8,3.07427447]
[1765533569547,0.486,3253.0,3252.8,8.74517608]
[1765533570065,0.1699,3252.9,3252.8,8.74517608]
[1765533571365,0.1699,3252.9,3252.5,0.001]
[1765533571366,0.1699,3252.9,3252.7,3.07433491]
[1765533571735,0.1699,3252.8,3252.7,3.07433491]
[1765533573048,0.1699,3252.8,3252.6,3.07442139]
[1765533573245,0.486,3253.0,3252.6,3.07442139]
[1765533573470,0.1699,3252.7,3252.6,3.07442139]
[1765533574476,0.1699,3252.7,3252.5,3.07555803]
[1765533574668,0.1699,3252.6,3252.5,3.65603332]
[1765533575172,8.74418327,3253.9,3252.5,3.65603332]
[1765533575173,3.07308218,3254.1,3252.5,8.44242816]
[1765533575480,0.1699,3253.5,3252.8,6.15090161]
[1765533575772,0.486,3253.4,3252.8,5.67090161]
[1765533575980,0.1699,3252.9,3252.8,5.67090161]
[1765533576149,0.6559,3252.9,3252.8,5.67090161]
[1765533577372,0.6559,3252.9,3252.8,9.22517608]
[1765533577373,0.486,3252.9,3252.8,9.22517608]
[1765533577878,0.486,3252.9,3252.8,9.69347608]
[1765533578378,0.486,3252.9,3252.8,9.22517608]
[1765533578973,0.6559,3252.9,3252.8,8.74517608]
[1765533579680,0.486,3252.9,3252.8,8.74517608]
[1765533580550,0.6559,3252.9,3252.8,5.67090161]
[1765533580750,0.6559,3252.9,3252.8,8.74517608]
[1765533580950,0.6559,3252.9,3252.8,5.67090161]
[1765533581755,0.6559,3252.9,3252.8,8.74517608]
[1765533581952,0.1699,3252.9,3252.8,8.74517608]
[1765533582153,0.6559,3252.9,3252.8,8.74517608]
[1765533582879,0.6559,3252.9,3252.8,5.67090161]
[1765533583780,0.8258,3252.9,3252.5,0.001]
[1765533583979,0.1699,3252.6,3252.5,3.07555803]
[1765533585265,0.1699,3252.6,3252.5,0.001]
[1765533585874,0.1699,3252.6,3252.5,3.07555803]
[1765533586283,0.1699,3252.6,3252.5,0.001]
[1765533589984,0.6559,3252.6,3252.5,0.001]
[1765533591557,0.486,3252.6,3252.5,0.001]
[1765533591773,0.486,3252.6,3252.5,0.9292]
[1765533591968,0.486,3252.6,3252.5,4.00375803]
[1765533592288,0.486,3252.6,3252.5,0.4762]
[1765533592662,0.6559,3252.6,3252.5,0.001]
[1765533595276,0.486,3252.6,3252.5,0.9292]
[1765533595685,0.486,3252.6,3252.5,0.4762]
[1765533596200,0.1699,3252.6,3252.5,0.001]
[1765533596995,0.486,3252.7,3252.5,0.4762]
[1765533597170,0.486,3252.7,3252.5,0.9292]
[1765533597501,0.486,3252.7,3252.5,0.4762]
[1765533598413,0.1699,3252.6,3252.5,0.4762]
[1765533598699,0.1699,3252.6,3252.5,0.001]
[1765533600401,0.3705978,3252.6,3252.5,0.001]
[1765533600568,3.4142635,3252.6,3252.5,0.001]
[1765533600764,3.80428985,3252.6,3252.5,0.001]
[1765533601298,3.83508765,3252.6,3252.5,0.001]
[1765533603276,3.80428985,3252.6,3252.5,0.001]
[1765533603799,3.83508765,3252.6,3252.5,0.001]
[1765533604165,3.80428985,3252.6,3252.5,0.001]
[1765533604370,4.24059165,3252.6,3252.5,0.001]
[1765533605070,4.20979385,3252.6,3252.5,0.001]
[1765533605272,4.69579385,3252.6,3252.5,0.001]
[1765533606201,4.20979385,3252.6,3252.5,0.001]
[1765533606406,4.29028985,3252.6,3252.5,0.001]
[1765533606603,3.80428985,3252.6,3252.5,0.001]
[1765533606772,3.237,3254.0,3252.5,0.4762]
[1765533606972,0.1699,3253.6,3252.5,0.9292]
[1765533607293,0.5167978,3253.5,3252.5,0.9292]
[1765533607496,6.147415,3253.4,3252.5,0.9292]
[1765533607681,6.317315,3253.4,3252.5,0.9292]
[1765533607878,0.8502315,3253.3,3252.5,0.9292]
[1765533608494,0.1699,3253.2,3252.5,0.4762]
[1765533609008,0.486,3253.1,3252.5,0.9292]
[1765533609523,0.486,3253.1,3252.5,4.00375466]
[1765533609923,0.1699,3253.5,3252.5,3.55075466]
[1765533610128,6.1468482,3253.7,3252.8,0.36972563]
[1765533610297,0.486,3253.6,3252.8,0.36972563]
[1765533610489,0.6559,3253.6,3252.8,0.82272563]
[1765533610694,3.0734241,3253.7,3252.9,0.453]
[1765533610998,0.486,3253.6,3252.9,0.453]
[1765533612102,0.486,3253.6,3252.9,6.60129565]
[1765533612301,3.55951903,3253.6,3252.9,3.52711569]
[1765533613331,0.002,3254.2,3253.0,6.49722384]
[1765533613496,6.31599262,3254.1,3253.0,6.49722384]
[1765533613700,6.31599262,3254.1,3253.1,0.6384]
[1765533613927,0.6559,3254.0,3253.1,0.6384]
[1765533614130,3.07323519,3253.9,3253.1,3.71233822]
[1765533614424,3.24313519,3253.9,3253.1,5.22339262]
[1765533615642,0.486,3253.8,3253.1,5.22339262]
[1765533616330,3.55937003,3253.8,3253.1,5.22339262]
[1765533618323,3.55937003,3253.8,3253.1,2.1494544]
[1765533618526,3.72927003,3253.8,3253.1,2.1494544]
[1765533618714,3.72927003,3253.8,3253.1,5.22343292]
[1765533618909,0.486,3253.7,3253.1,5.22343292]
[1765533619111,0.486,3253.7,3253.2,1.43417217]
[1765533619537,0.486,3253.7,3253.2,1.90677217]
[1765533619741,0.486,3253.7,3253.2,0.4726]
[1765533620211,0.6559,3253.7,3253.1,0.1854]
[1765533620410,3.72935779,3253.7,3253.1,0.1854]
[1765533620662,0.1699,3253.2,3252.9,0.92299314]
[1765533620831,6.14691558,3253.7,3252.9,3.07417609]
[1765533621026,0.486,3253.6,3253.1,0.461]
[1765533621425,0.486,3253.6,3253.1,0.9336]
[1765533621644,0.486,3253.6,3253.1,0.461]
[1765533621843,0.486,3253.6,3253.2,0.4726]
[1765533622349,0.486,3253.6,3253.0,3.91635346]
[1765533622547,0.486,3253.6,3253.0,5.34507175]
[1765533622912,3.55958184,3253.6,3253.0,2.27104392]
[1765533624440,3.55958184,3253.6,3253.0,5.34512844]
[1765533624642,3.55958184,3253.6,3253.0,2.27104392]
[1765533624839,3.55958184,3253.6,3253.0,1.90131829]
[1765533625037,3.72948184,3253.6,3253.0,1.90131829]
[1765533625342,3.72948184,3253.6,3253.0,0.4726]
[1765533625540,0.1699,3253.1,3252.8,0.9229903]
[1765533625754,0.1699,3253.1,3252.6,3.07440711]
[1765533625755,0.1699,3252.9,3252.5,0.001]
[1765533625917,0.1699,3252.6,3252.5,0.001]
[1765533626113,0.6559,3252.6,3252.5,0.001]
[1765533626351,0.8258,3252.6,3252.5,0.001]
[1765533626558,0.6559,3252.6,3252.5,0.001]
[1765533627244,0.8258,3252.6,3252.5,0.001]
[1765533627546,0.6559,3252.6,3252.5,0.001]
[1765533628187,3.9002635,3252.6,3252.5,0.001]
[1765533628348,4.597726,3252.6,3252.5,0.001]
[1765533634139,3.941826,3252.6,3252.5,0.001]
[1765533634377,3.7303635,3252.6,3252.5,0.001]
[1765533635180,3.2443635,3252.6,3252.5,0.001]
[1765533635383,3.5604635,3252.6,3252.5,0.462]
[1765533636452,3.07436146,3252.8,3252.5,0.9346]
[1765533636656,9.21942222,3254.0,3252.7,0.461]
[1765533636848,0.1699,3253.8,3252.9,0.461]
[1765533637370,6.1468482,3253.7,3253.0,0.4726]
[1765533637541,0.486,3253.6,3253.0,0.4726]
[1765533638559,9.3901723,3253.7,3253.0,0.4726]
[1765533638751,0.486,3253.6,3253.0,0.4726]
[1765533639152,0.486,3253.5,3253.1,0.1846]
[1765533639572,3.0737075,3253.4,3253.1,0.6572]
[1765533640070,3.0737075,3253.4,3253.1,0.1846]
[1765533640245,3.0737075,3253.4,3253.2,0.4726]
[1765533640574,0.486,3253.3,3252.8,6.04504273]
[1765533640742,0.1699,3253.2,3252.7,0.6572]
[1765533641157,0.1699,3253.2,3252.8,0.4726]
[1765533641977,3.55999096,3253.1,3252.8,0.4726]
[1765533642474,0.1699,3252.9,3252.5,0.001]
[1765533642773,0.1699,3252.9,3252.5,0.4736]
[1765533643943,3.07427447,3252.8,3252.5,0.4736]
[1765533646073,3.0741181,3253.0,3252.5,0.001]
[1765533646074,0.486,3252.7,3252.5,0.001]
[1765533646273,0.486,3252.7,3252.5,0.4896]
[1765533646475,6.14829031,3253.0,3252.6,0.4682]
[1765533646476,3.0741181,3253.0,3252.6,0.4682]
[1765533646681,0.486,3252.9,3252.6,0.4682]
[1765533647543,0.1699,3252.7,3252.5,0.001]
[1765533647776,0.1699,3252.6,3252.5,0.001]
[1765533647979,3.0744635,3252.6,3252.5,0.001]
[1765533648546,3.2443635,3252.6,3252.5,0.001]
[1765533649575,3.07439738,3252.7,3252.5,0.4692]
[1765533649758,0.486,3252.6,3252.5,0.4692]
[1765533650780,0.486,3252.6,3252.5,0.9578]
[1765533652599,3.5604635,3252.6,3252.5,0.9578]
[1765533652894,3.5604635,3252.6,3252.5,0.4692]
[1765533653978,3.7303635,3252.6,3252.5,0.001]
[1765533654688,0.486,3252.6,3252.5,0.001]
[1765533655748,0.486,3252.6,3252.5,0.4692]
[1765533659973,3.5604635,3252.6,3252.5,0.4692]
[1765533660601,3.7303635,3252.6,3252.5,0.001]
[1765533661607,3.5604635,3252.6,3252.5,0.001]
[1765533662303,0.486,3252.6,3252.5,0.001]
[1765533662718,4.39383387,3252.6,3252.5,0.001]
[1765533662886,3.90783387,3252.6,3252.5,0.001]
[1765533663075,4.22393387,3252.6,3252.5,0.001]
[1765533663791,3.07380198,3253.3,3252.5,0.4692]
[1765533664002,3.07380198,3253.3,3252.5,0.4896]
[1765533664003,1.23637529,3253.2,3252.5,0.4896]
[1765533664188,0.6559,3253.2,3252.5,0.4896]
[1765533664395,6.14798192,3253.1,3252.5,0.4896]
[1765533664780,0.486,3253.0,3252.5,0.4896]
[1765533665097,1.16638819,3253.0,3252.5,0.4896]
[1765533665699,1.33628819,3253.0,3252.5,0.4896]
[1765533666314,6.14835992,3252.9,3252.5,0.001]
[1765533666518,0.1699,3252.6,3252.5,0.001]
[1765533666829,0.6559,3252.6,3252.5,0.001]
[1765533667032,0.486,3252.6,3252.5,0.001]
[1765533667236,0.486,3252.6,3252.5,0.9578]
[1765533667415,0.486,3252.6,3252.5,0.4692]
[1765533667945,0.486,3252.6,3252.5,0.001]
[1765533668741,0.486,3252.6,3252.5,0.9578]
[1765533669113,3.07417996,3252.9,3252.5,6.63059017]
[1765533669304,0.002,3254.9,3252.8,6.14099017]
[1765533669505,0.002,3254.9,3254.1,6.32559017]
[1765533669717,3.07293,3254.3,3254.1,6.32559017]
[1765533669936,3.07281792,3254.4,3254.1,0.4682]
[1765533670106,0.488,3254.7,3253.8,0.4886]
[1765533670306,0.488,3254.7,3253.8,1.4113944]
[1765533670307,3.07495267,3254.2,3253.8,1.4113944]
[1765533670539,0.002,3254.2,3253.8,1.4113944]
[1765533670708,0.002,3254.2,3254.1,0.4682]
[1765533672642,0.002,3254.2,3254.1,1.1414]
[1765533675634,0.002,3254.2,3254.1,4.21444631]
[1765533675837,0.002,3254.2,3254.1,5.92358596]
[1765533676962,0.002,3254.2,3254.1,6.29331159]
[1765533679058,0.002,3254.2,3254.1,4.91792982]
[1765533679247,0.002,3254.2,3254.1,1.84488351]
[1765533679452,0.002,3254.2,3254.1,1.26440822]
[1765533680157,0.002,3254.2,3254.1,1.1414]
[1765533680656,0.002,3254.2,3253.8,4.01479413]
[1765533680860,0.002,3254.2,3253.8,1.26061914]
[1765533681070,0.002,3254.2,3253.8,0.9415]
[1765533681304,0.002,3254.2,3253.8,0.4555]
[1765533681434,0.002,3254.2,3253.9,0.4555]
[1765533684848,0.002,3254.2,3253.7,3.7312673]
[1765533685038,0.002,3254.2,3253.7,1.69387529]
[1765533685233,0.002,3254.2,3253.7,4.75854922]
[1765533685869,0.002,3254.2,3253.8,3.07330285]
[1765533686031,0.002,3254.2,3253.8,3.52880285]
[1765533686563,0.002,3254.2,3253.7,0.6579]
[1765533686730,0.1719,3254.2,3253.5,3.52905926]
[1765533686934,0.1719,3254.2,3253.5,4.45185366]
[1765533687135,0.002,3254.2,3253.5,3.99635366]
[1765533687459,0.002,3254.2,3254.1,0.4699]
[1765533688874,0.1719,3254.2,3253.6,0.92273196]
[1765533689072,0.1699,3253.7,3253.4,0.1846]
[1765533689470,0.486,3254.0,3253.6,0.4699]
[1765533689872,0.486,3254.0,3253.9,0.4699]
[1765533690160,0.488,3254.2,3253.9,0.4699]
[1765533690384,0.488,3254.2,3253.9,0.9254]
[1765533690869,3.07304631,3254.1,3253.9,0.4699]
[1765533692394,0.002,3254.2,3254.0,0.4699]
[1765533692606,0.002,3254.2,3254.1,0.4699]
[1765533692964,0.002,3254.2,3254.1,0.9254]
[1765533693358,0.002,3254.2,3254.1,3.99844631]
[1765533694560,0.002,3254.2,3254.1,4.5789216]
[1765533694764,0.002,3254.2,3254.1,5.75742014]
[1765533701597,0.002,3254.2,3253.4,0.1846]
[1765533701598,0.1719,3254.2,3253.4,0.1846]
[1765533701910,0.1699,3254.1,3253.4,1.59030092]
[1765533702109,0.1699,3253.5,3253.2,3.07386079]
[1765533702502,0.1699,3253.5,3253.2,3.52936079]
[1765533702882,0.1699,3254.0,3253.2,3.52936079]
[1765533703082,0.1699,3254.0,3253.2,4.55942122]
[1765533705227,3.24308997,3254.0,3253.2,7.63331769]
[1765533705756,6.31627994,3254.0,3253.2,4.18969559]
[1765533706057,0.1699,3253.9,3253.2,3.52936079]
[1765533707043,0.1699,3253.9,3253.2,3.07386079]
[1765533707351,3.07332964,3253.8,3253.2,3.07386079]
[1765533707852,3.07332964,3253.8,3253.1,0.36972563]
[1765533707853,6.14665928,3253.8,3253.0,3.5321564]
[1765533708014,3.24322964,3253.8,3253.1,3.07398868]
[1765533708415,3.24322964,3253.8,3252.9,3.07415761]
[1765533708416,6.82690852,3253.8,3252.9,3.07415761]
[1765533708738,0.1699,3253.7,3253.0,0.58047529]
[1765533708938,0.1699,3253.7,3252.8,0.76427529]
[1765533709123,0.1699,3253.7,3252.6,0.36972563]
[1765533709124,0.1699,3252.9,3252.6,0.36972563]
[1765533709323,6.14703712,3253.6,3252.7,3.07436898]
[1765533709528,0.486,3253.4,3252.8,0.4654]
[1765533710268,0.1699,3252.9,3252.6,0.4581]
[1765533710631,0.1699,3252.7,3252.5,0.001]
[1765533710961,0.1699,3252.6,3252.5,0.58147529]
[1765533711663,3.24402085,3253.0,3252.5,0.58147529]
[1765533712165,0.1699,3253.0,3252.5,3.07555406]
[1765533712331,0.6559,3253.4,3252.6,0.4581]
[1765533712532,3.07337568,3253.8,3252.6,0.4581]
[1765533712866,0.96323757,3253.7,3252.6,0.4581]
[1765533713378,7.11008577,3253.7,3252.6,3.53254703]
[1765533713531,0.1699,3253.6,3252.7,0.4581]
[1765533713855,0.1699,3253.6,3252.8,5.67091285]
[1765533715280,0.1699,3253.6,3252.7,0.4581]
[1765533715575,6.147415,3253.4,3252.5,9.20454344]
[1765533716070,3.0737075,3253.4,3252.8,5.67091285]
[1765533716272,3.5597075,3253.4,3252.8,5.67091285]
[1765533716478,3.0737075,3253.4,3253.1,5.67091285]
[1765533716874,4.09200865,3253.5,3253.1,5.67091285]
[1765533717075,4.09200865,3253.5,3253.4,0.4654]
[1765533717076,4.57800865,3253.5,3253.4,0.4654]
[1765533717476,7.82156631,3253.5,3253.1,5.86581285]
[1765533717779,7.82156631,3253.5,3253.1,5.67091285]
[1765533717949,0.78215663,3253.4,3252.9,0.653]
[1765533718149,6.31721532,3253.5,3252.9,0.1949]
[1765533718480,6.31721532,3253.5,3252.9,0.653]
[1765533719574,6.31721532,3253.5,3252.7,3.0743327]
[1765533719746,0.1699,3253.4,3252.5,3.56150422]
[1765533720241,0.0307978,3253.3,3252.5,0.001]
[1765533720448,0.1699,3252.6,3252.5,0.001]
[1765533721379,0.3398,3252.6,3252.5,0.001]
[1765533721684,3.4142635,3252.6,3252.5,0.001]
[1765533723567,3.9002635,3252.6,3252.5,0.001]
[1765533726496,3.9310613,3252.6,3252.5,0.001]
[1765533726682,4.63160414,3252.6,3252.5,0.001]
[1765533727591,5.03710814,3252.6,3252.5,0.001]
[1765533729702,5.00631034,3252.6,3252.5,0.001]
[1765533735017,4.43090634,3252.6,3252.5,0.001]
[1765533735507,3.94490634,3252.6,3252.5,0.001]
[1765533735799,4.43090634,3252.6,3252.5,0.001]
[1765533740401,3.47952817,3253.1,3252.5,0.9608]
[1765533740402,3.07399096,3253.1,3252.5,0.9608]
[1765533740574,3.07399096,3253.1,3252.6,0.4985]
[1765533740774,0.486,3253.0,3252.6,0.9598]